fUST/lending_fUST_20250323
["ID","MTS","AMOUNT","RATE_DAILY","PERIOD"]
[356574892,1742702968765,-500.0,0.0002,2]
[356574893,1742702968786,-500.0,0.0002,2]
[356574894,1742702968807,-500.0,0.0002,2]
[356574895,1742702968828,-500.0,0.0002,2]
[356574896,1742702968848,-500.0,0.0002,2]
[356574897,1742702968868,-500.0,0.0002,2]
[356574898,1742702968888,-500.0,0.0002,2]
[356574899,1742702968908,-500.0,0.0002,2]
[356574900,1742702968930,-501.44470922,0.0002,2]
[356574901,1742702968950,-500.0,0.0002,2]
[356574902,1742702968970,-500.0,0.0002,2]
[356574903,1742702968991,-500.0,0.0002,2]
[356574904,1742702969012,-502.37419339,0.0002,2]
[356574905,1742702969032,-500.0,0.0002,2]
[356574906,1742702969053,-500.0,0.0002,2]
[356574907,1742702969262,-1006.932771,0.0002048,2]
[356574908,1742702969285,-4097.3544426,0.00020915,2]
[356574909,1742702969305,-21540.44819222,0.00020917,2]
[356574941,1742703033205,-1049.96721612,0.00019833,2]
[356574944,1742703038318,-1007.23567465,0.00019833,2]
[356574945,1742703038327,-500.0,0.0002,2]
[356574946,1742703038337,-2057.20289076,0.00020625,2]
[356574947,1742703038347,-3359.55180778,0.00020917,2]
[356574948,1742703038356,-500.0,0.00020919,2]
[356574949,1742703038366,-300.0,0.00020999,2]
[356574950,1742703038375,-502.60879685,0.00021,2]
[356574951,1742703038384,-4311.5472253,0.00021,120]
[356574952,1742703038393,-2057.20289076,0.00021418,2]
[356574953,1742703038403,-500.0,0.00021735,2]
[356574954,1742703038412,-500.0,0.00021735,2]
[356574955,1742703038422,-599.03770611,0.00021735,2]
[356574957,1742703038431,-317.0,0.00021736,2]
[356574958,1742703038443,-317.0,0.00021736,2]
[356574959,1742703038453,-317.0,0.00021736,2]
[356574960,1742703038462,-355.0,0.00021736,2]
[356574961,1742703038472,-317.0,0.00021736,2]
[356574963,1742703038482,-355.0,0.00021736,2]
[356574964,1742703038492,-317.0,0.00021736,2]
[356574965,1742703038501,-355.0,0.00021736,2]
[356574966,1742703038510,-325.80922355,0.00021736,2]
[356574967,1742703038520,-355.0,0.00021736,2]
[356574968,1742703038529,-355.0,0.00021736,2]
[356574969,1742703038540,-369.99826504,0.00021736,2]
[356574970,1742703038549,-2000.0,0.000218,2]
[356574971,1742703038558,-2000.0,0.000218,2]
[356574972,1742703038568,-1182.0,0.000218,2]
[356574973,1742703038577,-2000.0,0.00021815,2]
[356574974,1742703038587,-5000.0,0.00021817,2]
[356574975,1742703038596,-382.43052453,0.00021916,2]
[356574976,1742703038605,-565.25729318,0.00021916,2]
[356574977,1742703038614,-199.42907724,0.00021917,2]
[356574978,1742703038624,-500.0,0.00021917,2]
[356574979,1742703038633,-500.0,0.00021917,2]
[356574980,1742703038642,-506.42263007,0.00021917,2]
[356574981,1742703038652,-500.0,0.00021917,2]
[356574982,1742703038661,-502.23094891,0.00021917,2]
[356574983,1742703038671,-504.35951318,0.00021917,2]
[356574984,1742703038680,-505.70330431,0.00021917,2]
[356574985,1742703038690,-500.0,0.00021917,2]
[356574986,1742703038700,-506.28586626,0.00021917,2]
[356574987,1742703038709,-500.0,0.00021917,2]
[356574988,1742703038719,-588.04,0.00021917,2]
[356574989,1742703038728,-500.0,0.00021917,2]
[356574990,1742703038738,-500.0,0.00021917,2]
[356574991,1742703038747,-538.24,0.00021917,2]
[356574992,1742703038757,-913.71,0.00021917,2]
[356574993,1742703038766,-509.69,0.00021917,2]
[356574994,1742703038775,-500.0,0.00021917,2]
[356574995,1742703038785,-500.0,0.00021917,2]
[356574996,1742703038794,-924.06,0.00021917,2]
[356574997,1742703038804,-500.0,0.00021917,2]
[356574998,1742703038814,-500.0,0.00021917,2]
[356574999,1742703038824,-517.84194216,0.00021917,2]
[356575000,1742703038834,-510.66136476,0.00021917,2]
[356575001,1742703038843,-500.0,0.00021917,2]
[356575002,1742703038853,-500.0,0.00021917,2]
[356575003,1742703038863,-505.6251512,0.00021917,2]
[356575004,1742703038872,-2000.0,0.00021917,2]
[356575005,1742703038882,-510.39644459,0.00021917,2]
[356575006,1742703038892,-507.65133137,0.00021917,2]
[356575007,1742703038901,-500.0,0.00021917,2]
[356575008,1742703038911,-835.17,0.00021917,2]
[356575009,1742703038921,-500.0,0.00021917,2]
[356575010,1742703038931,-500.0,0.00021917,2]
[356575011,1742703038940,-561.64,0.00021917,2]
[356575012,1742703038950,-500.0,0.00021917,2]
[356575013,1742703038961,-629.25,0.00021917,2]
[356575014,1742703038971,-199.91569685,0.00021917,2]
[356575015,1742703038980,-500.0,0.00021917,2]
[356575016,1742703038990,-500.0,0.00021917,2]
[356575017,1742703039001,-500.0,0.00021917,2]
[356575018,1742703039010,-500.0,0.00021917,2]
[356575019,1742703039020,-500.0,0.00021917,2]
[356575020,1742703039030,-500.0,0.00021917,2]
[356575021,1742703039039,-500.0,0.00021917,2]
[356575022,1742703039049,-500.0,0.00021917,2]
[356575023,1742703039059,-500.0,0.00021917,2]
[356575024,1742703039068,-788.61,0.00021917,2]
[356575025,1742703039079,-500.0,0.00021917,2]
[356575026,1742703039089,-500.0,0.00021917,2]
[356575027,1742703039098,-949.26,0.00021917,2]
[356575028,1742703039108,-500.0,0.00021917,2]
[356575029,1742703039119,-500.0,0.00021917,2]
[356575030,1742703039128,-554.52,0.00021917,2]
[356575031,1742703039138,-1132.86,0.00021917,2]
[356575032,1742703039147,-807.91,0.00021917,2]
[356575033,1742703039157,-720.32,0.00021917,2]
[356575034,1742703039167,-500.742803,0.00021917,2]
[356575035,1742703039176,-500.0,0.00021917,2]
[356575036,1742703039186,-500.0,0.00021917,2]
[356575037,1742703039195,-500.0,0.00021917,2]
[356575038,1742703039205,-500.0,0.00021917,2]
[356575039,1742703039215,-500.0,0.00021917,2]
[356575040,1742703039225,-596.53,0.00021917,2]
[356575041,1742703039235,-500.0,0.00021917,2]
[356575042,1742703039244,-500.0,0.00021917,2]
[356575043,1742703039254,-294.23020248,0.00021917,2]
[356575044,1742703039264,-500.0,0.00021917,2]
[356575045,1742703039274,-582.82,0.00021917,2]
[356575046,1742703039283,-500.0,0.00021917,2]
[356575047,1742703039293,-500.0,0.00021917,2]
[356575048,1742703039303,-500.0,0.00021917,2]
[356575049,1742703039312,-500.0,0.00021917,2]
[356575050,1742703039322,-500.0,0.00021917,2]
[356575051,1742703039333,-500.0,0.00021917,2]
[356575052,1742703039343,-500.0,0.00021917,2]
[356575053,1742703039353,-500.0,0.00021917,2]
[356575054,1742703039362,-500.0,0.00021917,2]
[356575055,1742703039372,-500.0,0.00021917,2]
[356575056,1742703039382,-981.18,0.00021917,2]
[356575057,1742703039392,-500.0,0.00021917,2]
[356575058,1742703039402,-286.790962,0.00021917,2]
[356575059,1742703039412,-602.82,0.00021917,2]
[356575060,1742703039422,-500.0,0.00021917,2]
[356575061,1742703039431,-500.0,0.00021917,2]
[356575062,1742703039445,-500.0,0.00021917,2]
[356575063,1742703039455,-500.0,0.00021917,2]
[356575064,1742703039464,-500.0,0.00021917,2]
[356575065,1742703039474,-500.0,0.00021917,2]
[356575066,1742703039484,-500.0,0.00021917,2]
[356575067,1742703039495,-500.0,0.00021917,2]
[356575068,1742703039504,-397.00038591,0.00021917,2]
[356575069,1742703039514,-95.92458469,0.00021917,2]
[356575070,1742703039561,-404.07541531,0.00021917,2]
[356575071,1742703039571,-500.0,0.00021917,2]
[356575072,1742703039581,-500.0,0.00021917,2]
[356575073,1742703039591,-844.32,0.00021917,2]
[356575074,1742703039601,-500.0,0.00021917,2]
[356575075,1742703039611,-500.0,0.00021917,2]
[356575076,1742703039621,-500.0,0.00021917,2]
[356575077,1742703039630,-500.0,0.00021917,2]
[356575078,1742703039640,-500.0,0.00021917,2]
[356575079,1742703039650,-500.0,0.00021917,2]
[356575080,1742703039660,-500.0,0.00021917,2]
[356575081,1742703039670,-1590.48,0.00021917,2]
[356575082,1742703039680,-500.0,0.00021917,2]
[356575083,1742703039690,-541.61,0.00021917,2]
[356575084,1742703039699,-500.0,0.00021917,2]
[356575089,1742703039894,-698.42,0.00021917,2]
[356575090,1742703039904,-200.0,0.00021917,2]
[356575091,1742703039914,-167.039327,0.00021917,2]
[356575092,1742703039923,-167.039327,0.00021917,2]
[356575093,1742703039933,-167.039327,0.00021917,2]
[356575094,1742703039942,-167.039327,0.00021917,2]
[356575095,1742703039952,-167.039327,0.00021917,2]
[356575096,1742703039961,-167.039327,0.00021917,2]
[356575097,1742703039970,-167.039327,0.00021917,2]
[356575098,1742703039980,-167.039327,0.00021917,2]
[356575099,1742703039989,-167.039327,0.00021917,2]
[356575101,1742703039998,-167.039327,0.00021917,2]
[356575102,1742703040008,-532.93,0.00021917,2]
[356575103,1742703040018,-167.039327,0.00021917,2]
[356575104,1742703040027,-1779.44,0.00021917,2]
[356575105,1742703040036,-167.039327,0.00021917,2]
[356575106,1742703040046,-616.67413039,0.00021917,2]
[356575107,1742703040055,-500.0,0.00021917,2]
[356575108,1742703040064,-1765.93,0.00021917,2]
[356575109,1742703040074,-500.0,0.00021917,2]
[356575110,1742703040083,-674.03,0.00021917,2]
[356575111,1742703040092,-500.0,0.00021917,2]
[356575112,1742703040102,-500.0,0.00021917,2]
[356575113,1742703040111,-2484.23,0.00021917,2]
[356575114,1742703040120,-671.38,0.00021917,2]
[356575115,1742703040130,-500.0,0.00021917,2]
[356575116,1742703040139,-668.61,0.00021917,2]
[356575118,1742703040148,-1460.07,0.00021917,2]
[356575120,1742703040158,-1034.88,0.00021917,2]
[356575121,1742703040167,-500.0,0.00021917,2]
[356575123,1742703040176,-500.0,0.00021917,2]
[356575124,1742703040185,-655.83,0.00021917,2]
[356575125,1742703040194,-614.58,0.00021917,2]
[356575126,1742703040204,-500.0,0.00021917,2]
[356575127,1742703040214,-500.0,0.00021917,2]
[356575128,1742703040224,-1169.32,0.00021917,2]
[356575129,1742703040233,-500.0,0.00021917,2]
[356575130,1742703040242,-500.0,0.00021917,2]
[356575131,1742703040251,-668.61,0.00021917,2]
[356575132,1742703040262,-500.0,0.00021917,2]
[356575133,1742703040272,-879.58,0.00021917,2]
[356575134,1742703040282,-499.34017087,0.00021917,2]
[356575135,1742703040293,-500.0,0.00021917,2]
[356575136,1742703040302,-500.0,0.00021917,2]
[356575137,1742703040312,-2248.73,0.00021917,2]
[356575138,1742703040323,-666.48,0.00021917,2]
[356575139,1742703040333,-919.23,0.00021917,2]
[356575140,1742703040342,-500.0,0.00021917,2]
[356575141,1742703040352,-764.11,0.00021917,2]
[356575142,1742703040361,-655.3,0.00021917,2]
[356575143,1742703040370,-1289.07,0.00021917,2]
[356575144,1742703040380,-500.0,0.00021917,2]
[356575145,1742703040389,-500.0,0.00021917,2]
[356575146,1742703040398,-1261.83,0.00021917,2]
[356575147,1742703040407,-527.69059951,0.00021917,2]
[356575148,1742703040416,-1639.94,0.00021917,2]
[356575149,1742703040425,-448.22052204,0.00021917,2]
[356575150,1742703040434,-502.87,0.00021917,2]
[356575151,1742703040449,-500.0,0.00021917,2]
[356575152,1742703040459,-510.89,0.00021917,2]
[356575153,1742703040468,-500.0,0.00021917,2]
[356575154,1742703040478,-500.0,0.00021917,2]
[356575155,1742703040489,-500.0,0.00021917,2]
[356575156,1742703040499,-500.0,0.00021917,2]
[356575157,1742703040508,-500.0,0.00021917,2]
[356575158,1742703040519,-500.0,0.00021917,2]
[356575159,1742703040528,-500.0,0.00021917,2]
[356575160,1742703040538,-500.0,0.00021917,2]
[356575161,1742703040547,-1049.78,0.00021917,2]
[356575162,1742703040556,-554.54,0.00021917,2]
[356575163,1742703040564,-500.0,0.00021917,2]
[356575164,1742703040574,-500.0,0.00021917,2]
[356575165,1742703040584,-651.63,0.00021917,2]
[356575166,1742703040593,-500.0,0.00021917,2]
[356575167,1742703040603,-500.0,0.00021917,2]
[356575168,1742703040613,-500.0,0.00021917,2]
[356575169,1742703040623,-500.0,0.00021917,2]
[356575170,1742703040632,-500.0,0.00021917,2]
[356575171,1742703040642,-1498.13,0.00021917,2]
[356575172,1742703040652,-861.05,0.00021917,2]
[356575173,1742703040662,-779.11,0.00021917,2]
[356575174,1742703040672,-500.0,0.00021917,2]
[356575175,1742703040682,-415.14737345,0.00021917,2]
[356575176,1742703040692,-500.0,0.00021917,2]
[356575177,1742703040702,-1314.76,0.00021917,2]
[356575178,1742703040712,-500.0,0.00021917,2]
[356575179,1742703040722,-508.01,0.00021917,2]
[356575180,1742703040731,-945.61,0.00021917,2]
[356575181,1742703040742,-929.35,0.00021917,2]
[356575182,1742703040752,-2876.88,0.00021917,2]
[356575183,1742703040761,-500.0,0.00021917,2]
[356575184,1742703040772,-544.77,0.00021917,2]
[356575185,1742703040782,-500.0,0.00021917,2]
[356575186,1742703040792,-500.0,0.00021917,2]
[356575187,1742703040801,-563.03,0.00021917,2]
[356575188,1742703040811,-500.0,0.00021917,2]
[356575189,1742703040821,-500.0,0.00021917,2]
[356575190,1742703040830,-6122.85,0.00021917,2]
[356575191,1742703040840,-500.0,0.00021917,2]
[356575192,1742703040850,-500.0,0.00021917,2]
[356575193,1742703040859,-500.0,0.00021917,2]
[356575194,1742703040869,-1289.3,0.00021917,2]
[356575195,1742703040878,-500.0,0.00021917,2]
[356575196,1742703040888,-418.99097883,0.00021917,2]
[356575197,1742703040897,-500.0,0.00021917,2]
[356575198,1742703040908,-900.67,0.00021917,2]
[356575199,1742703040918,-500.0,0.00021917,2]
[356575200,1742703040927,-500.0,0.00021917,2]
[356575201,1742703040937,-3102.42,0.00021917,2]
[356575202,1742703040946,-992.9955,0.00021917,2]
[356575203,1742703040956,-992.9955,0.00021917,2]
[356575204,1742703040965,-992.9955,0.00021917,2]
[356575205,1742703040975,-992.9955,0.00021917,2]
[356575206,1742703040985,-500.0,0.00021917,2]
[356575207,1742703040994,-992.9955,0.00021917,2]
[356575208,1742703041004,-500.0,0.00021917,2]
[356575209,1742703041014,-992.9955,0.00021917,2]
[356575210,1742703041023,-9405.16,0.00021917,2]
[356575211,1742703041032,-992.9955,0.00021917,2]
[356575212,1742703041042,-992.9955,0.00021917,2]
[356575213,1742703041052,-992.9955,0.00021917,2]
[356575214,1742703041062,-992.9955,0.00021917,2]
[356575215,1742703041071,-992.9955,0.00021917,2]
[356575216,1742703041081,-992.9955,0.00021917,2]
[356575217,1742703041091,-500.0,0.00021917,2]
[356575218,1742703041100,-546.69,0.00021917,2]
[356575219,1742703041110,-500.0,0.00021917,2]
[356575220,1742703041120,-858.76,0.00021917,2]
[356575221,1742703041130,-500.0,0.00021917,2]
[356575222,1742703041139,-7405.93,0.00021917,2]
[356575223,1742703041148,-8542.5,0.00021917,2]
[356575224,1742703041158,-1092.7,0.00021917,2]
[356575225,1742703041168,-643.64122276,0.00021917,2]
[356575226,1742703041178,-1089.7,0.00021917,2]
[356575227,1742703041188,-607.69,0.00021917,2]
[356575228,1742703041198,-447.06039329,0.00021917,2]
[356575229,1742703041208,-898.4,0.00021917,2]
[356575230,1742703041217,-500.0,0.00021917,2]
[356575231,1742703041227,-788.96,0.00021917,2]
[356575232,1742703041236,-739.24,0.00021917,2]
[356575233,1742703041246,-500.0,0.00021917,2]
[356575234,1742703041256,-500.0,0.00021917,2]
[356575235,1742703041266,-616.7,0.00021917,2]
[356575236,1742703041276,-568.43314641,0.00021917,2]
[356575237,1742703041286,-2256.89,0.00021917,2]
[356575238,1742703041296,-984.53,0.00021917,2]
[356575239,1742703041305,-500.0,0.00021917,2]
[356575240,1742703041315,-535.88,0.00021917,2]
[356575241,1742703041324,-500.0,0.00021917,2]
[356575242,1742703041334,-500.0,0.00021917,2]
[356575243,1742703041343,-500.0,0.00021917,2]
[356575244,1742703041352,-500.0,0.00021917,2]
[356575245,1742703041361,-689.18,0.00021917,2]
[356575246,1742703041371,-500.0,0.00021917,2]
[356575247,1742703041381,-1471.58,0.00021917,2]
[356575248,1742703041390,-511.63381102,0.00021917,2]
[356575249,1742703041400,-1005.43,0.00021917,2]
[356575250,1742703041409,-500.0,0.00021917,2]
[356575251,1742703041419,-1415.18,0.00021917,2]
[356575252,1742703041428,-500.0,0.00021917,2]
[356575253,1742703041438,-792.46,0.00021917,2]
[356575254,1742703041447,-500.0,0.00021917,2]
[356575255,1742703041461,-585.63,0.00021917,2]
[356575256,1742703041470,-767.54,0.00021917,2]
[356575257,1742703041480,-664.04,0.00021917,2]
[356575258,1742703041490,-500.0,0.00021917,2]
[356575259,1742703041500,-1540.28,0.00021917,2]
[356575260,1742703041509,-2111.46812684,0.00021917,2]
[356575262,1742703043495,-55.92950495,0.00021917,2]
[356575271,1742703044073,-4205.50236821,0.00021917,2]
[356575272,1742703044083,-500.0,0.00021917,2]
[356575273,1742703044093,-2492.21,0.00021917,2]
[356575274,1742703044103,-715.719095,0.00021917,2]
[356575275,1742703044112,-715.719095,0.00021917,2]
[356575276,1742703044122,-715.719095,0.00021917,2]
[356575277,1742703044131,-715.719095,0.00021917,2]
[356575278,1742703044141,-715.719095,0.00021917,2]
[356575279,1742703044150,-715.719095,0.00021917,2]
[356575280,1742703044159,-715.719095,0.00021917,2]
[356575281,1742703044168,-1544.29,0.00021917,2]
[356575282,1742703044179,-715.719095,0.00021917,2]
[356575283,1742703044188,-715.719095,0.00021917,2]
[356575284,1742703044197,-715.719095,0.00021917,2]
[356575285,1742703044207,-715.719095,0.00021917,2]
[356575286,1742703044216,-715.719095,0.00021917,2]
[356575287,1742703044226,-1014.76,0.00021917,2]
[356575288,1742703044235,-500.0,0.00021917,2]
[356575289,1742703044244,-3318.92,0.00021917,2]
[356575290,1742703044253,-982.9,0.00021917,2]
[356575291,1742703044262,-500.0,0.00021917,2]
[356575292,1742703044271,-2279.17,0.00021917,2]
[356575293,1742703044281,-584.58,0.00021917,2]
[356575294,1742703044290,-510.78,0.00021917,2]
[356575295,1742703044299,-500.0,0.00021917,2]
[356575296,1742703044309,-1586.23597948,0.00021917,2]
[356575297,1742703046519,-625.42402052,0.00021917,2]
[356575298,1742703046529,-500.0,0.00021917,2]
[356575299,1742703046539,-621.63,0.00021917,2]
[356575300,1742703046549,-578.22,0.00021917,2]
[356575301,1742703046559,-500.0,0.00021917,2]
[356575302,1742703046568,-1115.27,0.00021917,2]
[356575303,1742703046577,-4390.97,0.00021917,2]
[356575304,1742703046587,-868.5,0.00021917,2]
[356575305,1742703046597,-500.0,0.00021917,2]
[356575306,1742703046608,-1443.3,0.00021917,2]
[356575307,1742703046617,-853.74,0.00021917,2]
[356575308,1742703046627,-500.0,0.00021917,2]
[356575309,1742703046637,-9296.62,0.00021917,2]
[356575310,1742703046647,-17510.89,0.00021917,2]
[356575311,1742703046657,-500.0,0.00021917,2]
[356575312,1742703046667,-712.9573044,0.00021917,2]
[356575314,1742703618762,179.518408,0.00010959,2]
[356575317,1742704039106,-179.518408,0.00019178,2]
[356575318,1742704039128,-1.11186031,0.00020061,2]
[356575319,1742704043131,-502.35452569,0.00020061,2]
[356575320,1742704043154,-200.000001,0.0002012,2]
[356575321,1742704043175,-472.2532118,0.00020222,2]
[356575322,1742704043195,-200.0,0.0002058,2]
[356575323,1742704043217,-200.000001,0.0002078,2]
[356575324,1742704043239,-300.0,0.0002089,2]
[356575325,1742704043261,-671.33654843,0.00020956,2]
[356575326,1742704049081,-237.81637003,0.00020956,2]
[356575327,1742704049126,-227.16799294,0.00020956,2]
[356575328,1742704051125,-168.361615,0.00020956,2]
[356575329,1742704051147,-3083.91982165,0.00020962,2]
[356575356,1742704145090,-408.16751335,0.0001399,2]
[356575357,1742704145111,-570.90028137,0.000149,2]
[356575358,1742704145133,-300.0,0.00014999,2]
[356575359,1742704145153,-16000.0,0.00015,2]
[356575360,1742704145174,-420.0,0.00016416,2]
[356575361,1742704145195,-88.97499872,0.00017966,2]
[356575364,1742704152081,-498.02500128,0.00017966,2]
[356575365,1742704152104,-765.36159872,0.00019663,2]
[356575388,1742704159091,-57.63840128,0.00019663,2]
[356575389,1742704159114,-500.0,0.00020304,2]
[356575390,1742704159138,-500.0,0.00020304,2]
[356575391,1742704159162,-611.262805,0.00020304,2]
[356575392,1742704159185,-500.0,0.00020304,2]
[356575393,1742704159207,-500.0,0.00020304,2]
[356575394,1742704159229,-500.0,0.00020304,2]
[356575395,1742704159251,-500.0,0.00020304,2]
[356575396,1742704159273,-500.0,0.00020304,2]
[356575397,1742704159294,-500.0,0.00020304,2]
[356575398,1742704159316,-500.0,0.00020304,2]
[356575399,1742704159339,-500.0,0.00020304,2]
[356575400,1742704159361,-500.0,0.00020304,2]
[356575401,1742704159382,-500.0,0.00020304,2]
[356575402,1742704159403,-500.0,0.00020304,2]
[356575403,1742704159424,-500.0,0.00020304,2]
[356575404,1742704159446,-500.0,0.00020304,2]
[356575405,1742704159468,-500.0,0.00020304,2]
[356575406,1742704159489,-500.0,0.00020304,2]
[356575407,1742704159511,-500.0,0.00020304,2]
[356575408,1742704159533,-500.0,0.00020304,2]
[356575409,1742704159555,-500.0,0.00020304,2]
[356575410,1742704159577,-500.0,0.00020304,2]
[356575411,1742704159598,-500.0,0.00020304,2]
[356575412,1742704159620,-500.0,0.00020304,2]
[356575413,1742704159642,-500.0,0.00020304,2]
[356575414,1742704159665,-500.0,0.00020304,2]
[356575415,1742704159687,-500.0,0.00020304,2]
[356575416,1742704159709,-500.0,0.00020304,2]
[356575417,1742704159731,-500.0,0.00020304,2]
[356575418,1742704159753,-500.0,0.00020304,2]
[356575419,1742704159774,-500.0,0.00020304,2]
[356575420,1742704159796,-500.0,0.00020304,2]
[356575421,1742704159817,-500.0,0.00020304,2]
[356575422,1742704159839,-500.0,0.00020304,2]
[356575423,1742704159861,-56.7492914,0.00020304,2]
[356575457,1742704233086,-20.07002981,0.0002,2]
[356575458,1742704233098,-416.66666667,0.0002,2]
[356575469,1742704238412,-1303.26330352,0.0002,2]
[356575470,1742704238422,-530.4418191,0.0002,2]
[356575471,1742704238431,-300.0,0.00020303,2]
[356575472,1742704238441,-551.25135844,0.00020304,2]
[356575473,1742704238450,-500.0,0.00020304,2]
[356575474,1742704238459,-6613.96574087,0.00020305,2]
[356575482,1742704240893,-18286.03425913,0.00020305,2]
[356575483,1742704240904,-500.0,0.00020578,2]
[356575484,1742704240914,-500.0,0.00020852,2]
[356575485,1742704240926,-2256.90705475,0.00020962,2]
[356575486,1742704240937,-161.74,0.00021062,2]
[356575487,1742704240948,-507.64874655,0.00021126,2]
[356575488,1742704240958,-303.65297039,0.0002155,2]
[356575489,1742704240969,-1141.5972106,0.00021617,2]
[356575490,1742704240980,-5000.0,0.00021717,2]
[356575491,1742704240992,-3700.04596884,0.00021817,2]
[356575492,1742704241006,-1933.57572157,0.00021817,2]
[356575493,1742704241018,-10745.28857095,0.00021817,2]
[356575501,1742704243769,-2020.91219939,0.00021817,2]
[356575502,1742704243785,-642.81311,0.00021817,2]
[356575503,1742704243823,-6214.43021511,0.00021817,2]
[356575504,1742704243838,-302.23434211,0.00021817,2]
[356575556,1742704246790,-25.24088811,0.00021817,2]
[356575570,1742704713790,178.592563,0.00010959,2]
[356575584,1742705148120,-335.71915335,0.000174,2]
[356575585,1742705235131,-269.55652985,0.00017226,2]
[356575586,1742705235152,-189.16307099,0.000174,2]
[356575587,1742705235174,-112.2643269,0.0001822,2]
[356575588,1742705243075,-360.56506939,0.0001822,2]
[356575589,1742705345070,-49.47459948,0.0001822,2]
[356575590,1742705345091,-301.33434721,0.0001822,2]
[356575591,1742705349095,-184.91964036,0.0001822,2]
[356575615,1742705432931,-13.74601243,0.0001822,2]
[356575616,1742705432940,-1854.2796004,0.00020583,2]
[356575617,1742705432950,-644.742728,0.00020686,2]
[356575618,1742705432959,-5000.0,0.00020954,2]
[356575619,1742705432968,-500.0,0.00021164,2]
[356575620,1742705432978,-412.82545915,0.00021518,2]
[356575621,1742705432988,-300.0,0.00021518,2]
[356575622,1742705432999,-1478.58442096,0.00021519,2]
[356575623,1742705433008,-412.82545911,0.00021564,2]
[356575624,1742705433018,-412.82545911,0.00021609,2]
[356575625,1742705433027,-582.42210025,0.00021618,2]
[356575626,1742705433037,-500.0,0.00021618,2]
[356575627,1742705433047,-500.0,0.00021618,2]
[356575628,1742705433057,-500.0,0.00021618,2]
[356575629,1742705433067,-500.0,0.00021618,2]
[356575630,1742705433077,-454.49056448,0.00021618,2]
[356575631,1742705433088,-500.0,0.00021618,2]
[356575632,1742705433097,-500.0,0.00021618,2]
[356575633,1742705433107,-500.0,0.00021618,2]
[356575634,1742705433116,-500.0,0.00021618,2]
[356575635,1742705433126,-500.0,0.00021618,2]
[356575636,1742705433135,-500.0,0.00021618,2]
[356575637,1742705433145,-500.0,0.00021618,2]
[356575638,1742705433154,-500.0,0.00021618,2]
[356575639,1742705433163,-500.0,0.00021618,2]
[356575640,1742705433173,-500.0,0.00021618,2]
[356575641,1742705433183,-500.0,0.00021618,2]
[356575642,1742705433192,-500.0,0.00021618,2]
[356575643,1742705433202,-500.0,0.00021618,2]
[356575644,1742705433211,-500.0,0.00021618,2]
[356575645,1742705433221,-500.0,0.00021618,2]
[356575646,1742705433231,-500.0,0.00021618,2]
[356575647,1742705433241,-500.0,0.00021618,2]
[356575648,1742705433250,-500.0,0.00021618,2]
[356575649,1742705433260,-500.0,0.00021618,2]
[356575650,1742705433270,-500.0,0.00021618,2]
[356575651,1742705433279,-500.0,0.00021618,2]
[356575652,1742705433289,-500.0,0.00021618,2]
[356575653,1742705433298,-500.0,0.00021618,2]